bitfinex-derivatives/quotes_BTCF0:USTF0_20251120
["timestamp","ask_amount","ask_price","bid_price","bid_amount"]
[1763659569039,0.03160354,87054.0,87036.0,0.0115022]
[1763659569040,0.00219803,87037.0,87036.0,0.0115022]
[1763659569443,0.00017238,87039.0,87038.0,0.02557]
[1763659569646,0.00017238,87039.0,87038.0,0.05114]
[1763659569838,0.00237041,87039.0,87038.0,0.05114]
[1763659570149,0.00017238,87039.0,87038.0,0.062642]
[1763659570646,0.01916,87076.0,87073.0,0.0114972]
[1763659570852,0.05836841,87098.0,87053.0,0.0575001]
[1763659570853,0.01916,87098.0,87053.0,0.0575001]
[1763659571039,0.00219803,87097.0,87085.0,0.0114957]
[1763659571239,0.00219803,87097.0,87054.0,0.0628589]
[1763659571240,0.00219803,87097.0,87054.0,0.00536]
[1763659571440,0.00219803,87097.0,87087.0,0.0114955]
[1763659571640,0.00219803,87097.0,87054.0,0.00536]
[1763659571641,0.0114949,87092.0,87083.0,0.00017227]
[1763659571846,0.00219803,87084.0,87083.0,0.00017227]
[1763659572346,0.00017227,87101.0,87084.0,0.0114958]
[1763659572547,0.00017227,87101.0,87083.0,0.00017227]
[1763659572548,0.0114955,87087.0,87083.0,0.00017227]
[1763659572748,0.00219803,87084.0,87083.0,0.00017227]
[1763659573050,0.1065825,87099.0,87094.0,0.0114945]
[1763659573251,0.01933227,87101.0,87100.0,0.0114938]
[1763659573252,0.00017227,87101.0,87100.0,0.0114938]
[1763659573846,0.0023703,87101.0,87100.0,0.0114938]
[1763659574054,0.00017227,87101.0,87100.0,0.0114938]
[1763659574251,0.03920841,87158.0,87115.0,0.0114918]
[1763659574442,0.0114896,87132.0,87091.0,0.0114949]
[1763659574644,0.00219803,87131.0,87092.0,0.0114948]
[1763659574839,0.00219803,87131.0,87122.0,0.0114908]
[1763659575053,0.0306454,87164.0,87101.0,0.01301]
[1763659575353,0.00017216,87141.0,87124.0,0.00017216]
[1763659575648,0.0114891,87136.0,87125.0,1.5]
[1763659575848,0.00017216,87141.0,87133.0,0.0114893]
[1763659576043,0.00237019,87141.0,87125.0,1.5]
[1763659576243,0.0114903,87127.0,87124.0,2.16e-06]
[1763659576547,0.01385869,87141.0,87050.0,0.0575021]
[1763659576548,0.0114951,87091.0,87050.0,0.43289003]
[1763659576745,0.00219803,87090.0,87051.0,1.5]
[1763659576944,0.01916,87076.0,87051.0,1.5]
[1763659577141,0.00219803,87075.0,87051.0,1.5]
[1763659577343,0.01916,87098.0,87051.0,1.5]
[1763659577541,0.00219803,87097.0,87057.0,0.0574972]
[1763659577745,0.00017227,87083.0,87081.0,0.0114962]
[1763659578339,0.0001048,87096.0,87095.0,0.0114944]
[1763659578748,0.02146283,87096.0,87073.0,0.00017227]
[1763659578940,0.02146283,87096.0,87073.0,0.01166957]
[1763659579145,0.0114967,87078.0,87073.0,0.00017227]
[1763659579347,0.00219803,87074.0,87073.0,0.00017227]
[1763659579545,0.00219803,87074.0,87057.0,0.001]
[1763659579546,0.01916,87072.0,87057.0,0.001]
[1763659579755,0.00219803,87058.0,87046.0,0.0115009]
[1763659579952,0.00219803,87058.0,87030.0,1.5]
[1763659579953,0.0001048,87057.0,87051.0,0.0115002]
[1763659580156,0.00219803,87052.0,87030.0,1.5]
[1763659580351,0.00219803,87052.0,87029.0,0.00010442]
[1763659580557,0.00017227,87049.0,87048.0,0.0115005]
[1763659580754,0.0023703,87049.0,87033.0,1.5]
[1763659581056,0.0023703,87049.0,87043.0,0.0115013]
[1763659581242,0.0023703,87049.0,87033.0,1.5]
[1763659581747,0.01467069,87049.0,87047.0,0.0115007]
[1763659581954,0.00017227,87049.0,87047.0,0.0115007]
[1763659582148,0.0001048,87057.0,87033.0,0.0115025]
[1763659582149,0.0001048,87057.0,87056.0,0.0114996]
[1763659582854,0.0001048,87057.0,87034.0,1.5]
[1763659583061,0.0001048,87057.0,87055.0,0.0114996]
[1763659583252,0.0114926,87109.0,87054.0,0.0114998]
[1763659583444,0.0114926,87109.0,87066.0,0.00017227]
[1763659583445,0.0114968,87077.0,87066.0,0.00017227]
[1763659583645,0.11292484,87096.0,87078.0,0.0114966]
[1763659583646,0.00017227,87080.0,87078.0,0.0114966]
[1763659584148,0.0023703,87080.0,87066.0,0.00017227]
[1763659584349,0.0023703,87080.0,87079.0,0.0114966]
[1763659584551,0.0023703,87080.0,87070.0,0.0114976]
[1763659584759,0.00017227,87080.0,87078.0,0.0114967]
[1763659585057,0.0023703,87080.0,87078.0,0.0114967]
[1763659585257,0.00017227,87080.0,87078.0,0.0114967]
[1763659585652,0.05069871,87127.0,87078.0,0.0114967]
[1763659585653,0.0114906,87125.0,87104.0,0.0114931]
[1763659585856,0.00999999,87140.0,87104.0,0.0114931]
[1763659585857,0.0114923,87112.0,87104.0,0.0114931]
[1763659586054,0.00219803,87105.0,87060.0,0.43289003]
[1763659586346,0.00219803,87105.0,87071.0,0.0114975]
[1763659586347,0.0114959,87084.0,87071.0,0.0114975]
[1763659586553,0.00219803,87083.0,87051.0,0.0115002]
[1763659586747,0.01160999,87076.0,87058.0,0.00017227]
[1763659586949,0.00219803,87075.0,87071.0,0.0114975]
[1763659587356,0.00011299,87076.0,87075.0,0.0114971]
[1763659587751,0.00231102,87076.0,87073.0,0.0114972]
[1763659587953,0.01380812,87076.0,87060.0,0.002]
[1763659588155,0.00231102,87076.0,87072.0,0.0114974]
[1763659588869,0.00011299,87076.0,87072.0,0.0114974]
[1763659589363,0.00231102,87076.0,87058.0,0.00017227]
[1763659589770,0.00231102,87076.0,87071.0,0.0114976]
[1763659589965,0.00231102,87076.0,87074.0,0.0114971]
[1763659590164,0.00011299,87076.0,87074.0,0.0114971]
[1763659590368,0.05176339,87112.0,87108.0,0.0114926]
[1763659590554,0.07879796,87125.0,87108.0,0.0114926]
[1763659590555,0.03920841,87121.0,87120.0,0.0114911]
[1763659590757,0.03920841,87127.0,87126.0,0.0114904]
[1763659590963,0.03920841,87131.0,87130.0,0.0114898]
[1763659591270,0.01210983,87134.0,87130.0,0.0114898]
[1763659591577,0.07879796,87158.0,87156.0,0.0114864]
[1763659591758,0.07879796,87162.0,87160.0,0.0114859]
[1763659591959,0.07879796,87166.0,87165.0,0.0114852]
[1763659592156,0.08099599,87166.0,87160.0,0.0114857]
[1763659592363,0.00219803,87166.0,87161.0,0.0114856]
[1763659592859,0.00219803,87166.0,87154.0,0.00017207]
[1763659592860,0.00219803,87166.0,87164.0,0.0114853]
[1763659593060,0.00219803,87166.0,87154.0,0.00017207]
[1763659593365,0.00219803,87166.0,87163.0,0.0114854]
[1763659593561,0.00219803,87166.0,87154.0,0.00017207]
[1763659593562,0.00319803,87166.0,87154.0,0.00017207]
[1763659593771,0.00319803,87166.0,87110.0,0.7246]
[1763659593772,0.0114882,87143.0,87110.0,0.7246]
[1763659593957,0.0114885,87141.0,87129.0,0.0114899]
[1763659594164,0.00219803,87130.0,87110.0,0.7246]
[1763659594469,0.00219803,87130.0,87090.0,0.0689706]
[1763659594659,0.00219803,87130.0,87120.0,0.011491]
[1763659594861,0.00219803,87130.0,87129.0,0.01149]
[1763659595262,4e-08,87134.0,87129.0,0.01149]
[1763659595462,0.0396646,87177.0,87126.0,0.0114903]
[1763659595666,0.01368333,87165.0,87110.0,0.49035233]
[1763659595873,0.00219803,87165.0,87144.0,0.0114879]
[1763659596164,0.00219803,87165.0,87129.0,0.0574496]
[1763659596468,0.00219803,87165.0,87138.0,0.00017218]
[1763659596667,0.00219803,87165.0,87154.0,0.0114865]
[1763659596871,0.00219803,87165.0,87159.0,0.0114859]
[1763659597171,0.00219803,87165.0,87138.0,0.00017218]
[1763659597172,0.0114853,87164.0,87138.0,0.00017218]
[1763659597370,0.00219803,87163.0,87159.0,0.0114859]
[1763659597764,0.00219803,87163.0,87155.0,0.0114865]
[1763659597964,0.0114856,87162.0,87155.0,0.0114865]
[1763659598165,0.0396646,87181.0,87153.0,0.0114868]
[1763659598166,3e-08,87156.0,87153.0,0.0114868]
[1763659598364,0.01233704,87186.0,87181.0,0.011483]
[1763659598663,0.0122153,87185.0,87182.0,0.00219799]
[1763659598870,0.0122153,87185.0,87175.0,0.00017205]
[1763659598871,0.0114838,87176.0,87175.0,0.00017205]
[1763659599072,0.03183,87168.0,87126.0,0.0114903]
[1763659599268,0.0114869,87153.0,87127.0,0.00219799]
[1763659599464,0.0007327,87152.0,87133.0,0.0114893]
[1763659599667,0.0114871,87151.0,87134.0,0.00219799]
[1763659599867,0.03978133,87166.0,87165.0,0.0114852]
[1763659600065,0.0007327,87166.0,87165.0,0.00219799]
[1763659600270,0.00017199,87174.0,87173.0,0.0114842]
[1763659600472,0.00017199,87174.0,87173.0,0.01368219]
[1763659600666,0.00090469,87174.0,87173.0,0.00219799]
[1763659601969,0.0114861,87159.0,87092.0,0.04096719]
[1763659602284,0.0114861,87159.0,87090.0,0.02149499]
[1763659602285,0.0114905,87125.0,87101.0,0.00219799]
[1763659602469,0.0007327,87124.0,87115.0,0.0114917]
[1763659602774,0.0007327,87124.0,87120.0,0.0114911]
[1763659602974,0.0007327,87124.0,87123.0,0.00219799]
[1763659604370,0.01314081,87124.0,87123.0,0.00219799]
[1763659604576,0.0114919,87114.0,87113.0,0.00017216]
[1763659604870,0.0007327,87114.0,87113.0,0.00017216]
[1763659605071,0.0007327,87114.0,87079.0,0.0114964]
[1763659605370,0.0007327,87114.0,87100.0,0.0114937]
[1763659605573,0.01233273,87142.0,87113.0,0.00219799]
[1763659605770,0.0007327,87141.0,87113.0,0.00219799]
[1763659605969,0.0007327,87141.0,87137.0,0.0114889]
[1763659606270,0.00017216,87148.0,87147.0,0.0114876]
[1763659606474,0.0007327,87154.0,87150.0,0.0114871]
[1763659606669,0.0007327,87154.0,87139.0,0.00017216]
[1763659606670,0.0007327,87154.0,87152.0,0.0114869]
[1763659606873,0.0007327,87154.0,87153.0,0.00219799]
[1763659607060,0.0122194,87154.0,87153.0,0.00219799]
[1763659607263,0.0122194,87154.0,87139.0,0.00017216]
[1763659607264,0.0114885,87140.0,87139.0,0.00017216]
[1763659607476,0.0007327,87140.0,87083.0,0.0114959]
[1763659607668,0.0007327,87140.0,87104.0,0.00219799]
[1763659607970,0.0114918,87116.0,87104.0,0.00219799]
[1763659608172,0.0007327,87115.0,87109.0,0.0114925]
[1763659608375,0.0007327,87115.0,87114.0,0.0114919]
[1763659608574,0.0007327,87115.0,87114.0,0.00219799]
[1763659609170,0.00017216,87121.0,87120.0,0.0114911]
[1763659609476,0.00090486,87121.0,87120.0,0.01368909]
[1763659609673,0.00017216,87121.0,87120.0,0.01368909]
[1763659610069,0.00017216,87121.0,87120.0,0.00219799]
[1763659610376,0.00117216,87121.0,87120.0,0.00219799]
[1763659610769,0.00190486,87121.0,87120.0,0.00219799]
[1763659610972,0.00190486,87121.0,87103.0,0.00017216]
[1763659610973,0.43183,87120.0,87103.0,0.00017216]
[1763659611171,0.00219803,87104.0,87103.0,0.00017216]
[1763659611683,0.00219803,87104.0,87103.0,0.01166556]
[1763659611974,0.00219803,87104.0,87103.0,0.00017216]
[1763659612174,0.00219803,87104.0,87092.0,0.0114948]
[1763659612374,0.0114948,87093.0,87091.0,0.0001234]
[1763659612574,0.00219803,87092.0,87091.0,0.0001234]
[1763659613273,0.00017216,87100.0,87099.0,0.0114939]
[1763659613472,0.00219803,87111.0,87110.0,0.0114925]
[1763659613675,0.0114938,87100.0,87091.0,0.00029556]
[1763659613876,0.00219803,87092.0,87091.0,0.01179056]
[1763659614978,0.00017216,87100.0,87099.0,0.0114939]
[1763659616279,0.00017216,87100.0,87091.0,0.01279056]
[1763659616280,0.00237019,87100.0,87098.0,0.011494]
[1763659617075,0.00237019,87100.0,87099.0,0.1077]
[1763659617275,0.00017216,87100.0,87099.0,0.1077]
[1763659617487,0.011491,87122.0,87100.0,0.0114937]
[1763659617774,0.00219803,87121.0,87119.0,0.0114912]
[1763659618773,0.00219803,87121.0,87111.0,0.00017216]
[1763659618977,0.00219803,87121.0,87119.0,0.0114912]
[1763659619567,0.00017216,87129.0,87128.0,0.0114901]
[1763659619875,0.00237019,87129.0,87111.0,0.00017216]
[1763659620073,0.0114922,87113.0,87111.0,0.00017216]
[1763659620271,0.0114902,87128.0,87072.0,0.09306419]
[1763659620272,0.0114945,87095.0,87072.0,0.09306419]
[1763659620579,0.05710803,87092.0,87072.0,0.09306419]
[1763659620876,0.05710803,87092.0,87082.0,0.011496]
[1763659621080,0.05710803,87092.0,87047.0,0.0115008]
[1763659621081,0.0114977,87071.0,87043.0,0.0115013]
[1763659621267,0.00017226,87066.0,87048.0,0.00017226]
[1763659621471,0.00017226,87066.0,87064.0,0.0114985]
[1763659621675,0.07184523,87098.0,87066.0,0.0114982]
[1763659621871,0.09397845,87113.0,87096.0,0.0114943]
[1763659621872,0.00219803,87097.0,87096.0,0.0114943]
[1763659622070,0.04001523,87118.0,87115.0,0.0114918]
[1763659622270,0.0598472,87140.0,87133.0,0.0114894]
[1763659622475,0.00219803,87140.0,87122.0,0.0114908]
[1763659622689,0.00012173,87139.0,87122.0,0.00017216]
[1763659622978,0.00219803,87138.0,87122.0,0.00017216]
[1763659623179,0.03011,87125.0,87097.0,0.0114942]
[1763659623376,0.00219803,87098.0,87097.0,0.0114942]
[1763659623568,0.00011261,87098.0,87097.0,0.0114942]
[1763659623977,0.0114899,87130.0,87123.0,0.0114906]
[1763659624177,0.00219803,87124.0,87123.0,0.0114906]
[1763659624779,6e-08,87135.0,87134.0,0.0114893]
[1763659624978,0.0114864,87157.0,87119.0,0.0114912]
[1763659625178,0.00219803,87157.0,87130.0,0.36000587]
[1763659625484,0.0114864,87156.0,87130.0,0.36000587]
[1763659625676,0.0442479,87170.0,87138.0,0.0114887]
[1763659625677,0.00219803,87155.0,87138.0,0.0114887]
[1763659625875,0.00219803,87155.0,87151.0,0.0114869]
[1763659626577,0.00017216,87162.0,87161.0,0.0114857]
[1763659626972,0.00017216,87162.0,87144.0,0.01166006]
[1763659626973,0.00237019,87162.0,87144.0,0.00017216]
[1763659627278,0.0114861,87159.0,87151.0,0.011487]
[1763659627483,0.00219803,87158.0,87144.0,0.00017216]
[1763659627685,0.0114863,87157.0,87144.0,0.00017216]
[1763659627876,0.00219803,87156.0,87144.0,0.00017216]
[1763659628072,0.01165786,87162.0,87144.0,0.00017216]
[1763659628073,6e-08,87162.0,87161.0,0.0114857]
[1763659628381,0.011479,87213.0,87177.0,0.0114835]
[1763659628382,0.04001523,87204.0,87177.0,0.0114835]
[1763659628583,0.00219803,87192.0,87189.0,0.0114819]
[1763659628774,0.00219803,87192.0,87159.0,0.011486]
[1763659628975,0.00219803,87192.0,87172.0,0.0114842]
[1763659629288,0.00017205,87191.0,87173.0,0.00017205]
[1763659629486,0.00219803,87190.0,87173.0,0.00017205]
[1763659629686,0.00219803,87190.0,87187.0,0.0114822]
[1763659629983,0.00219803,87190.0,87173.0,0.00017205]
[1763659630191,0.00017205,87191.0,87190.0,0.0114819]
[1763659630488,0.00237008,87191.0,87190.0,0.0114819]
[1763659630674,0.00237008,87191.0,87173.0,0.00017205]
[1763659631085,0.011483,87182.0,87173.0,0.00017205]
[1763659631280,0.00219803,87174.0,87173.0,0.00017205]
[1763659631677,0.03011,87168.0,87139.0,0.11452]
[1763659631878,0.03011,87168.0,87115.0,9.345e-05]
[1763659631879,0.0574263,87165.0,87115.0,9.345e-05]
[1763659632075,0.0114898,87131.0,87120.0,0.011491]
[1763659632283,0.00219803,87130.0,87120.0,0.011491]
[1763659632484,0.0114912,87120.0,87115.0,9.345e-05]
[1763659632689,0.03011,87150.0,87115.0,9.345e-05]
[1763659632690,0.00219803,87116.0,87115.0,9.345e-05]
[1763659632994,0.00017217,87126.0,87122.0,0.0114909]
[1763659633182,0.0114868,87154.0,87139.0,0.0114886]
[1763659633378,0.011487,87152.0,87118.0,0.0114913]
[1763659633575,0.00219803,87151.0,87150.0,0.0114872]
[1763659633775,0.00219803,87151.0,87124.0,0.0574533]
[1763659633776,0.00219803,87151.0,87148.0,0.0114873]
[1763659633985,0.04001523,87183.0,87151.0,0.011487]
[1763659634180,0.03011,87175.0,87158.0,0.00017217]
[1763659634385,0.00219803,87159.0,87158.0,0.00017217]
[1763659634889,0.40219803,87159.0,87115.0,9.345e-05]
[1763659635092,0.00219803,87159.0,87133.0,0.0114894]
[1763659635286,0.00219803,87159.0,87117.0,0.0574578]
[1763659635492,0.00219803,87159.0,87115.0,9.345e-05]
[1763659635493,0.00219803,87159.0,87130.0,0.36000587]
[1763659635790,0.00319803,87159.0,87144.0,0.0114879]
[1763659635991,0.01468413,87159.0,87143.0,0.00017206]
[1763659636191,0.00319803,87159.0,87143.0,0.00017206]
[1763659636485,0.00219803,87159.0,87143.0,0.00017206]
[1763659636889,0.0114865,87156.0,87147.0,0.0114875]
[1763659637090,0.00219803,87148.0,87147.0,0.0114875]
[1763659638294,0.00219803,87148.0,87143.0,0.00117206]
[1763659638490,0.00219803,87148.0,87144.0,0.011488]
[1763659638788,0.00017206,87160.0,87157.0,0.0114862]
[1763659639088,0.01368403,87159.0,87153.0,0.0114867]
[1763659639283,0.01368403,87159.0,87143.0,0.00017206]
[1763659639284,0.00219803,87159.0,87143.0,0.00017206]
[1763659639487,6e-08,87160.0,87156.0,0.0114863]
[1763659639692,0.07012523,87200.0,87188.0,0.0114821]
[1763659639894,0.00219803,87198.0,87195.0,0.0114812]
[1763659640078,0.04001523,87212.0,87182.0,0.011483]
[1763659640282,0.00219803,87197.0,87196.0,0.0114811]
[1763659640588,0.0114784,87217.0,87210.0,0.0114792]
[1763659640786,0.04001523,87223.0,87191.0,0.0114817]
[1763659640787,0.01367723,87211.0,87206.0,0.0114798]
[1763659640981,0.00219803,87211.0,87209.0,0.0114794]
[1763659641180,0.00219803,87211.0,87209.0,0.0114793]
[1763659641384,0.00017206,87222.0,87205.0,0.00017206]
[1763659641585,0.00219803,87211.0,87210.0,0.0114793]
[1763659641987,0.00419803,87211.0,87210.0,0.0114793]
[1763659642388,0.00419803,87211.0,87208.0,0.0114795]
[1763659642691,0.00219803,87211.0,87208.0,0.0114795]
[1763659642896,0.00219803,87211.0,87205.0,0.00017206]
[1763659642897,0.00319803,87211.0,87205.0,0.00017206]
[1763659643094,0.001,87211.0,87209.0,0.0114794]
[1763659643299,0.00017206,87222.0,87217.0,0.0114783]
[1763659643610,0.00017206,87222.0,87205.0,0.00017206]
[1763659643611,0.0114779,87221.0,87205.0,0.00017206]
[1763659643896,0.0114786,87216.0,87205.0,0.00017206]
[1763659644090,0.00219803,87215.0,87212.0,0.011479]
[1763659645298,0.00017206,87222.0,87205.0,0.00017206]
[1763659645299,0.0114795,87209.0,87205.0,0.00017206]
[1763659645485,0.00219803,87206.0,87205.0,0.00017206]
[1763659645689,0.00219803,87206.0,87170.0,0.37940587]
[1763659645690,0.01148,87205.0,87170.0,0.36000587]
[1763659645890,0.00219803,87183.0,87174.0,0.0114839]
[1763659646084,0.00219803,87183.0,87177.0,0.0114836]
[1763659646488,0.00219803,87183.0,87180.0,0.0114832]
[1763659647498,0.00017206,87191.0,87174.0,0.00017206]
[1763659647499,0.00017206,87191.0,87186.0,0.0114824]
[1763659647699,0.00017206,87191.0,87189.0,0.011482]
[1763659648302,0.0114764,87232.0,87197.0,0.011481]
[1763659648492,0.00219803,87232.0,87207.0,0.0114796]
[1763659648688,0.00219803,87232.0,87202.0,0.0114803]
[1763659649002,0.0114772,87226.0,87224.0,0.0114774]
[1763659649194,0.00219803,87225.0,87211.0,0.011479]
[1763659649394,0.0114789,87214.0,87208.0,0.00017206]
[1763659649596,0.00219803,87209.0,87208.0,0.00017206]
[1763659649996,0.00017206,87225.0,87214.0,0.0114787]
[1763659650193,0.0114787,87215.0,87208.0,0.00017206]
[1763659650390,0.01367743,87209.0,87208.0,0.00017206]
[1763659650793,0.40219803,87209.0,87173.0,0.0114841]
[1763659650992,0.40219803,87209.0,87138.0,0.04096719]
[1763659650993,0.0114858,87161.0,87134.0,0.04096719]
[1763659651194,0.0114868,87154.0,87142.0,0.0114882]
[1763659651401,0.00219803,87143.0,87123.0,0.0114906]
[1763659651594,0.00219803,87143.0,87139.0,0.0114886]
[1763659651907,0.00017206,87150.0,87147.0,0.0114875]
[1763659652204,9.606e-05,87149.0,87147.0,0.0114875]
[1763659652403,0.00219803,87148.0,87132.0,0.00017206]
[1763659652705,0.00219803,87148.0,87145.0,0.0114878]
[1763659653105,0.00219803,87148.0,87140.0,0.0114884]
[1763659653293,0.00219803,87148.0,87132.0,0.00017206]
[1763659653294,0.0114877,87147.0,87132.0,0.00017206]
[1763659653494,0.00219803,87133.0,87132.0,0.00017206]
[1763659653804,0.00017206,87150.0,87147.0,0.0114875]
[1763659654003,0.00229409,87149.0,87147.0,0.0114875]
[1763659654202,0.01378149,87149.0,87139.0,0.001]
[1763659654406,0.011488,87144.0,87140.0,0.001]
[1763659654697,0.00219803,87141.0,87140.0,0.0124885]
[1763659655091,0.00219803,87141.0,87132.0,0.00017206]
[1763659655092,0.0114894,87134.0,87132.0,0.00017206]
[1763659655297,0.02648206,87150.0,87132.0,0.00017206]
[1763659655298,0.00229409,87133.0,87132.0,0.00017206]
[1763659656497,0.00229409,87133.0,87100.0,0.00012849]
[1763659656498,0.49639567,87133.0,87100.0,0.00012849]
[1763659656804,0.02631,87120.0,87100.0,0.00012849]
[1763659657002,0.02631,87096.0,87056.0,0.0114995]
[1763659657200,0.00219803,87095.0,87072.0,0.0114975]
[1763659657507,0.011496,87084.0,87075.0,0.00017218]
[1763659657801,0.00017218,87092.0,87075.0,0.00017218]
[1763659657802,0.00219803,87076.0,87075.0,0.00017218]
[1763659658101,0.00234101,87076.0,87075.0,0.00017218]
[1763659658905,0.00014298,87076.0,87075.0,0.00017218]
[1763659659601,0.00234101,87076.0,87075.0,0.00117218]
[1763659660404,0.0574874,87073.0,87030.0,0.36000587]
[1763659660594,0.011501,87046.0,87010.0,0.36000587]
[1763659660794,0.00228261,87045.0,87010.0,0.36000587]
[1763659661002,0.0115026,87034.0,87004.0,0.0115064]
[1763659661205,0.00219803,87032.0,87013.0,0.0115052]
[1763659661399,0.00219803,87032.0,87023.0,0.00011564]
[1763659661709,0.0115038,87024.0,87023.0,0.00011564]
[1763659661909,0.0115068,87002.0,86985.0,0.0115089]
[1763659662105,0.02631,87025.0,86986.0,1.5]
[1763659662311,0.0115046,87019.0,87002.0,0.0115067]
[1763659662511,0.00219803,87018.0,86986.0,1.5]
[1763659662811,0.00017239,87011.0,86986.0,1.5115087]
[1763659663006,0.00017239,87011.0,87006.0,0.0115061]
[1763659663214,0.00017239,87011.0,87000.0,0.0115069]
[1763659663400,0.00017239,87011.0,87002.0,0.001]
[1763659663598,0.00017239,87011.0,87006.0,0.0115061]
[1763659663901,0.00017239,87011.0,87002.0,0.001]
[1763659664207,0.00017239,87011.0,87008.0,0.0115059]
[1763659664816,0.00012477,87017.0,87016.0,0.0115049]
[1763659665011,0.0115001,87053.0,87035.0,0.0115023]
[1763659665316,0.0115007,87048.0,87030.0,0.011503]
[1763659665610,0.00219803,87047.0,87010.0,0.36000587]
[1763659665818,0.00017239,87037.0,87032.0,0.0115027]
[1763659666006,0.0115028,87032.0,87020.0,0.01167669]
[1763659666317,0.00219803,87031.0,87020.0,0.00017239]
[1763659666811,0.00219803,87031.0,87030.0,0.001]
[1763659667207,0.00010466,87036.0,87033.0,0.0115025]
[1763659667411,0.00219803,87035.0,87033.0,0.0115025]
[1763659667702,0.00010466,87036.0,87033.0,0.0115025]
[1763659668306,0.00230269,87036.0,87030.0,0.001]
[1763659668507,0.00010466,87036.0,87033.0,0.0115025]
[1763659668807,0.01380509,87036.0,87020.0,0.00117239]
[1763659669115,0.00230269,87036.0,87020.0,0.00117239]
[1763659669412,0.00230269,87036.0,87035.0,0.0115024]
[1763659669606,0.00010466,87036.0,87035.0,0.0115024]
[1763659669805,0.00010466,87036.0,87020.0,0.00117239]
[1763659669806,0.40230269,87036.0,87020.0,0.00017239]
[1763659670006,0.011504,87023.0,87020.0,0.00017239]
[1763659670206,0.00219803,87021.0,87020.0,0.00017239]
[1763659671105,0.00219803,87021.0,87020.0,0.01167669]
[1763659671310,0.00010466,87036.0,87035.0,0.0115024]
[1763659671505,0.00230269,87036.0,87033.0,0.0115026]
[1763659671705,0.0115039,87024.0,87020.0,0.00017239]
[1763659671913,0.00219803,87021.0,87020.0,0.00017239]
[1763659672708,0.00228865,87021.0,87020.0,0.00017239]
[1763659673105,9.062e-05,87021.0,87020.0,0.00017239]
[1763659673413,9.062e-05,87021.0,87020.0,0.40017239]
[1763659673817,9.062e-05,87021.0,87020.0,0.00017239]
[1763659675514,0.011501,87046.0,87036.0,0.0115022]
[1763659675710,0.00237042,87037.0,87036.0,0.0115022]
[1763659676419,0.00246485,87037.0,87020.0,0.00017239]
[1763659676621,0.0115023,87036.0,87022.0,0.011504]
[1763659676812,0.00219803,87035.0,87034.0,0.0115025]
[1763659677317,0.00219803,87035.0,87020.0,0.00017239]
[1763659677818,0.00219803,87035.0,87034.0,0.1013425]
[1763659678616,0.00026682,87037.0,87034.0,0.1013425]
[1763659678913,0.00026682,87037.0,87036.0,0.08984]
[1763659679106,0.01204731,87060.0,87036.0,0.08984]
[1763659679306,0.0114972,87074.0,87034.0,0.0125025]
[1763659679515,0.00219803,87062.0,87056.0,0.0114996]
[1763659679712,0.09441758,87062.0,87060.0,0.011499]
[1763659680110,5.833e-05,87061.0,87052.0,0.00017229]
[1763659680315,0.09373,87053.0,87052.0,0.00017229]
[1763659680517,0.09592803,87053.0,87052.0,0.00017229]
[1763659680717,0.09592803,87053.0,87052.0,2.469e-05]
[1763659680912,0.0115021,87037.0,87034.0,0.001]
[1763659681117,0.01155743,87061.0,87034.0,0.001]
[1763659681118,0.00219803,87035.0,87034.0,0.001]
[1763659681313,0.00219803,87035.0,87033.0,0.0115025]
[1763659681514,0.00219803,87035.0,86976.0,0.06104884]
[1763659681515,0.0115026,87033.0,86990.0,0.44448663]
[1763659681712,0.0115031,87030.0,87004.0,0.11456]
[1763659681917,0.0115033,87028.0,87022.0,0.011504]
[1763659682124,0.00219803,87023.0,87021.0,0.0115041]
[1763659682329,0.00017229,87034.0,87033.0,0.0972226]
[1763659682512,0.00017229,87034.0,87033.0,0.0994206]
[1763659682712,0.00017229,87034.0,87033.0,0.0533206]
[1763659683018,0.0114966,87079.0,87033.0,0.0533206]
[1763659683019,0.0866,87060.0,87041.0,0.0115014]
[1763659683217,0.03966,87056.0,87054.0,0.0114998]
[1763659683520,0.03966,87056.0,87030.0,0.011503]
[1763659683521,0.02622,87045.0,87028.0,0.0115033]
[1763659683710,0.00219803,87029.0,87023.0,0.0115039]
[1763659683913,0.00219803,87029.0,87026.0,0.0115035]
[1763659684108,0.00017229,87035.0,87034.0,0.0115025]
[1763659684309,0.00017229,87035.0,87017.0,0.00017229]
[1763659684310,0.00237032,87035.0,87017.0,0.00017229]
[1763659684613,0.09322929,87035.0,87033.0,0.0125026]
[1763659684819,0.0866,87034.0,87033.0,0.001]
[1763659685009,0.0866,87034.0,87021.0,0.0115041]
[1763659685010,0.00219803,87034.0,87021.0,0.0115041]
[1763659685210,0.00219803,87034.0,87017.0,0.00017229]
[1763659685416,0.02504226,87033.0,87032.0,0.0115027]
[1763659685816,0.09103126,87035.0,87034.0,0.03962]
[1763659686010,9e-08,87035.0,87034.0,0.08572]
[1763659688215,0.02512143,87035.0,87034.0,0.08572]
[1763659688418,0.00219812,87035.0,87032.0,0.0115027]
[1763659688617,0.02512134,87034.0,87032.0,0.0115027]
[1763659688817,0.00219803,87033.0,87032.0,0.0972227]
[1763659689323,0.02732655,87033.0,87032.0,0.0115027]
[1763659689720,0.02732655,87033.0,87032.0,0.0972227]
[1763659689917,1e-08,87035.0,87032.0,0.0115027]
[1763659690117,0.04001523,87051.0,87049.0,0.0972205]
[1763659690330,0.00219803,87050.0,87049.0,0.0972205]
[1763659690618,0.09849746,87073.0,87049.0,0.0972205]
[1763659690619,0.04001523,87062.0,87060.0,0.0114991]
[1763659690817,0.00073269,87062.0,87061.0,0.002198]
[1763659691321,0.00017229,87070.0,87069.0,0.0511179]
[1763659691625,0.00090498,87070.0,87069.0,0.0994159]
[1763659692021,0.05206268,87070.0,87069.0,0.002198]
[1763659692225,0.15903,87070.0,87069.0,0.002198]
[1763659692615,0.08750498,87070.0,87059.0,0.0114991]
[1763659692815,0.0980999,87054.0,87053.0,0.00017229]
[1763659693026,0.0980999,87054.0,87004.0,0.07255524]
[1763659693027,0.0115033,87028.0,87004.0,0.07255524]
[1763659693226,0.0115046,87019.0,87011.0,0.0115055]
[1763659693416,0.0115046,87019.0,86986.0,1.5]
[1763659693417,0.00073269,87012.0,86986.0,1.5]
[1763659693623,0.0866,87009.0,87006.0,0.0115062]
[1763659693822,0.00073269,87007.0,87006.0,0.0115062]
[1763659694127,0.00073269,87007.0,86998.0,0.0116796]
[1763659694128,0.08733269,87007.0,86998.0,0.0116796]
[1763659694328,0.0115063,87005.0,87001.0,0.0115068]
[1763659694523,0.03966,87004.0,87003.0,0.0115066]
[1763659694840,0.08733269,87004.0,87003.0,0.002198]
[1763659695032,0.00073269,87004.0,87003.0,0.002198]
[1763659695324,9.317e-05,87006.0,87004.0,0.0115065]
[1763659695517,0.0001724,87015.0,87006.0,0.0115062]
[1763659695723,0.00073269,87014.0,87013.0,0.0115053]
[1763659695922,0.0001724,87015.0,87013.0,0.0137033]
[1763659696123,0.00090509,87015.0,87013.0,0.0137033]
[1763659696518,0.0001724,87015.0,87013.0,0.0137033]